Cogmind - Beta 17 @@@ ROGUE MODE // 2026.08.11 @ 18:40:14 Player: ae Result: Destroyed by D-53 Grenadier with Mini Grenade Launcher Performance ------------- Evolutions (0) 0 Regions Visited (2) 400 Robots Destroyed (11) 55 Value Destroyed (79) 79 Prototype IDs (0) 0 Alien Tech Used (0) 0 Bonus (0) 0 TOTAL SCORE: 534 Bonus ------- None Cogmind --------- Core Integrity 0/250 Matter 300/300 Energy 94/100 System Corruption 0% Temperature Cool (0) Movement Core (50) Location -10/Mines Parts ------- > --- POWER (1) -------- (None) > --- PROPULSION (2) --- (None) > --- UTILITY (2) ------ Targeting Computer > --- WEAPON (2) ------- (None) > --- INVENTORY (5) ---- Light Ion Engine Flight Unit Seismic Detector Assault Rifle Assault Rifle Peak State ------------ > --- POWER ------------ Light Ion Engine > --- PROPULSION ------- Light Treads Light Treads > --- UTILITY ---------- Seismic Detector > --- WEAPON ----------- Small Laser Assault Rifle > --- INVENTORY -------- Seismic Detector Assault Rifle [Rating: 6] Favorites ----------- Power Light Ion Engine Engine Light Ion Engine Propulsion Light Treads Treads Light Treads Utility Seismic Detector Device Seismic Detector Processor Targeting Computer Weapon Small Laser Energy Gun Small Laser Ballistic Gun Assault Rifle Build | -11 -10 -10 ------- Run | Yrd Mat Min Slots Evolved . | . . . Power . | . . . Propulsion . | . . . Utility . | . . . Weapon . | . . . Parts Attached 9 | 5 4 . Power 1 | . 1 . Engine 1 | . 1 . Core . | . . . Reactor . | . . . Propulsion 2 | 2 . . Treads 2 | 2 . . Leg . | . . . Wheel . | . . . Hover . | . . . Flight . | . . . Utility 2 | 1 1 . Device 1 | 1 . . Storage . | . . . Processor 1 | . 1 . Hackware . | . . . Protection . | . . . Artifact . | . . . Weapon 4 | 2 2 . Energy Gun 1 | 1 . . Energy Cannon . | . . . Ballistic Gun 3 | 1 2 . Ballistic Cannon . | . . . Launcher . | . . . Special Weapon . | . . . Impact Weapon . | . . . Slashing Weapon . | . . . Piercing Weapon . | . . . Special Melee Weapon . | . . . Unidentified Prototypes . | . . . Parts Lost 5 | . . 5 Power . | . . . Propulsion 2 | . . 2 Utility 1 | . . 1 Weapon 2 | . . 2 Highest Loss Streak 5 | . . 5 To Critical Strikes . | . . . Average Backups 3 | 1 4 4 Power . | . . 1 Propulsion . | . . 1 Utility . | . 1 1 Weapon 1 | . 1 1 Tool/Special . | . . . Unused Backups 2 | . . 2 Power . | . . . Propulsion 1 | . . 1 Utility 1 | . . 1 Weapon . | . . . Tool/Special . | . . . Average Slot Usage (%) 73 | . 73 75 Engine 1 | . 2 . Treads 26 | . 28 23 Device 14 | . 14 14 Processor 7 | . 4 14 Energy Gun 13 | . 14 11 Ballistic Gun 10 | . 9 11 Peak Build Rating 6 | 5 6 6 Average Rating 4 | 3 5 5 On Entrance 3 | . 4 6 Avg Prop Armor Cover (%) 28 | 27 29 28 Naked Turns . | . . . Heaviest Build 4 | 4 3 3 Greatest Support 20 | 20 3 3 Greatest Overweight (x) 1 | 1 . . Average Overweight (x) . | . . . Largest Inventory Capacity 5 | 5 5 5 Average Capacity 5 | 5 5 5 Most Carried 5 | 4 5 5 Average Carried 3 | 1 4 4 Final Capacity 5 | 5 5 5 Final Carried 5 | 4 5 5 Class Distribution -------------------- 100% | Mutant Dominant Class ---------------- Mutant | -10/Materials Mutant | -10/Mines Resources | -11 -10 -10 ----------- Run | Yrd Mat Min Matter Collected 356 | 221 107 28 Remotely . | . . . Salvage Created 278 | 171 107 . Parts 31 | 20 11 . Haulers Intercepted . | . . . Recyclers Shooed 1 | . 1 . Parts Field Recycled . | . . . Retrieved Matter . | . . . Parts Self-Destructed . | . . . Prevented . | . . . Parts Restored . | . . . Kills | -11 -10 -10 ------- Run | Yrd Mat Min Combat Hostiles Destroyed 3 | . 3 . Guns 3 | . 3 . Classes Destroyed 4 | 2 2 . Worker 1 | . 1 . Tunneler 6 | 5 1 . Recycler 1 | 1 . . Swarmer 3 | . 3 . Best Kill Streak 6 | 6 3 . Combat Bots Only 3 | . 3 . Max Kills in Single Turn 1 | 1 1 . Gunslinging . | . . . Exploded . | . . . Melee . | . . . Uniques/NPCs Destroyed . | . . . Combat | -11 -10 -10 -------- Run | Yrd Mat Min Hostile Shots Fired 35 | . 19 16 Missed 5 | . 4 1 Hits 30 | . 15 15 Projectile 30 | . 15 15 AOE 13 | . . 13 Damage Taken 746 | . 119 627 Core 250 | . 13 237 Absorbed by Shields . | . . . Core Remaining (%) 100 | 100 . . Volleys Fired 30 | 11 15 4 Largest 2 | 2 2 2 Hottest 60 | 60 60 60 Shots Fired 60 | 22 30 8 Gun 60 | 22 30 8 Cannon . | . . . Launcher . | . . . Special . | . . . Kinetic 30 | 11 15 4 Thermal 30 | 11 15 4 Explosive . | . . . Electromagnetic . | . . . Robot Hit Streak 8 | 5 5 8 Robot Miss Streak 3 | 2 3 . Penetration Max . | . . . Secondary Targets 1 | . 1 . Max Gunslinging Chain 1 | . 1 . Shots Hit Robots 40 | 14 18 8 Core Hits 16 | 7 7 2 Critical Kills . | . . . Critical Parts Destroyed 1 | . 1 . Critical Strikes 1 | . 1 . Destroy 1 | . 1 . Melee Attacks . | . . . Impact . | . . . Slashing . | . . . Piercing . | . . . Sneak Attacks . | . . . Combat Hostiles . | . . . Follow-up Attacks . | . . . Damage Inflicted 428 | 162 186 80 Guns 428 | 162 186 80 Cannons . | . . . Explosions . | . . . Melee . | . . . Ramming . | . . . Kinetic 191 | 87 66 38 Thermal 237 | 75 120 42 Explosive . | . . . Electromagnetic . | . . . Impact . | . . . Slashing . | . . . Piercing . | . . . Highest Corruption . | . . . Average Corruption . | . . . Corruption Purged . | . . . Corruption Blocked . | . . . Overload Shots . | . . . Overflow Damage . | . . . Projectiles . | . . . Explosions . | . . . Melee . | . . . Knockbacks . | . . . Impact . | . . . Kinetic . | . . . Secondary . | . . . Self-Inflicted Damage . | . . . Shots . | . . . Rammed . | . . . Targets Rammed . | . . . Kicked . | . . . Crushed . | . . . Highest Temperature 20 | . 20 20 Average Temperature 15 | . 16 10 Received Heat Transfer 15 | . . 15 Siege Activations . | . . . Martial Activations . | . . . Shielding Activations . | . . . Robots Disrupted . | . . . Combat Hostiles . | . . . Robots Corrupted . | . . . Combat Hostiles . | . . . Parts Fried . | . . . Impact Corruptions . | . . . Robots Melted . | . . . Combat Hostiles . | . . . Parts Melted . | . . . Heat Transferred 550 | 175 275 100 Parts Sabotaged . | . . . Parts Stolen . | . . . Parts Stripped . | . . . Power Chain Reactions . | . . . Alert | -11 -10 -10 ------- Run | Yrd Mat Min Maximum Alert Level . | . . . Low Security (%) 100 | 100 100 100 Level 1 . | . . . Level 2 . | . . . Level 3 . | . . . Level 4 . | . . . Level 5 . | . . . High Security . | . . . Max Security . | . . . Peak Influence 70 | 10 70 17 Initial 17 | . . 17 Average 22 | 2 42 8 Influence Increases 125 | 30 95 . Destroy 0b10 Robot/C 60 | . 60 . Destroy 0b10 Robot/NC 40 | 30 10 . Destroy Leader 10 | . 10 . Partial Spotted 15 | . 15 . Influence Decreases 125 | 30 50 45 Entered New Map 28 | . . 28 Time Decay 90 | 30 50 10 Lost Part 7 | . . 7 Squads Dispatched . | . . . Investigation . | . . . Extermination . | . . . Reinforcement . | . . . Assault . | . . . Garrison . | . . . Intercept . | . . . Searches Triggered . | . . . Construction Impeded . | . . . Haulers Reinforced . | . . . Active Scanning Responses . | . . . Cargo Convoy Interrupts . | . . . Stealth | -11 -10 -10 --------- Run | Yrd Mat Min Distress Signals . | . . . Communications Jammed . | . . . Distress Signals . | . . . Times Spotted 10 | . 6 4 Peak Tracking Total 4 | . 4 3 Tactical Retreats . | . . . Traps | -11 -10 -10 ------- Run | Yrd Mat Min Traps Triggered . | . . . Indirectly . | . . . Trap Hack Attempts . | . . . Triggered . | . . . Disarmed . | . . . Reprogrammed . | . . . Reused . | . . . Traps Extracted . | . . . Installed . | . . . Triggered . | . . . Machines | -11 -10 -10 ---------- Run | Yrd Mat Min Machines Disabled . | . . . Max in Single Turn . | . . . Machines Repaired . | . . . Machines Dismantled . | . . . Machines Sabotaged . | . . . Overloaded Fab Kills . | . . . Hacking | -11 -10 -10 --------- Run | Yrd Mat Min Machines Accessed . | . . . Terminals . | . . . Fabricators . | . . . Repair Stations . | . . . Recycling Units . | . . . Scanalyzers . | . . . Garrison Access . | . . . Total Hacks . | . . . Successful . | . . . Failed . | . . . Catastrophic . | . . . Database Lockouts . | . . . Manual . | . . . Terminals . | . . . Fabricators . | . . . Repair Stations . | . . . Recycling Units . | . . . Scanalyzers . | . . . Garrison Access . | . . . Terminal Hacks . | . . . Fabricator Hacks . | . . . Repair Station Hacks . | . . . Recycling Unit Hacks . | . . . Scanalyzer . | . . . Garrison Access Hacks . | . . . Unauthorized Hacks . | . . . Terminals . | . . . Fabricators . | . . . Repair Stations . | . . . Recycling Units . | . . . Scanalyzers . | . . . Garrison Access . | . . . Data Cores Recovered . | . . . Used . | . . . Hacking Detections . | . . . Full Trace Events . | . . . Feedback Events . | . . . Feedback Blocked . | . . . Robot Schematics Acquired . | . . . Robots Built . | . . . Authchips . | . . . Time . | . . . Total Robot Build Rating . | . . . Part Schematics Acquired . | . . . Parts Built . | . . . Authchips . | . . . Time . | . . . Total Part Build Rating . | . . . Part Studies Acquired . | . . . Parts Repaired . | . . . Time . | . . . Parts Recycled . | . . . Recycled Matter . | . . . Retrieved Matter . | . . . Retrieved Components . | . . . Parts Scanalyzed . | . . . Part Schematics Acquired . | . . . Parts Damaged . | . . . Bothacking | -11 -10 -10 ------------ Run | Yrd Mat Min Used RIF Installer . | . . . Robots Hacked . | . . . Non-combat . | . . . Combat . | . . . Robot Hacks Applied . | . . . Relay Couplers Released . | . . . Fabnet Peak Effective % . | . . . Robots Rewired . | . . . Allies Hacked . | . . . Hacks Repelled . | . . . Allies | -11 -10 -10 -------- Run | Yrd Mat Min Total Allies . | . . . Largest Group . | . . . Highest-Rated Group . | . . . Highest-Rated Ally . | . . . Total Orders . | . . . Ally Attacks . | . . . Total Damage . | . . . Kills . | . . . Allies Corrupted . | . . . Allies Melted . | . . . Intel | -11 -10 -10 ------- Run | Yrd Mat Min Active Infowar (turns) 172 | 7 120 45 Seismic 172 | 7 120 45 Robot Analysis Total . | . . . Derelict Logs Recovered . | . . . Drone Launches . | . . . Drone Recoveries . | . . . Exploration | -11 -10 -10 ------------- Run | Yrd Mat Min Turns Passed 250 | 85 120 45 Spaces Moved 241 | 51 127 63 Core 239 | 49 127 63 Treads 2 | 2 . . Legs . | . . . Wheels . | . . . Hover . | . . . Flight . | . . . Fastest Speed 50 | 50 50 50 Average Speed 51 | 58 50 50 Slowest Speed 160 | 160 50 50 Overloaded Moves . | . . . Propulsion Burnouts . | . . . Robots Hopped . | . . . Potential Cave-ins . | . . . Cave-ins Triggered . | . . . Exploration Rate (%) 16 | 3 30 17 Regions Visited 2 Branch Regions 1 Pre-discovered Areas . | . . . Known Exits Taken . | . . . Unknown Exits Taken 2 | 1 1 . Scrap Searched . | . . . Spaces Dug . | . . . Terrain Destroyed . | . . . Melee . | . . . Projectile . | . . . AOE . | . . . Terrain Rammed . | . . . Walls Destroyed . | . . . Machines Disabled . | . . . Actions | -11 -10 -10 --------- Run | Yrd Mat Min Total 305 | 82 154 69 Wait 17 | 11 6 . Move 239 | 50 126 63 Hop . | . . . Pick Up 5 | 4 1 . Fast Attach 6 | 4 2 . Attach 4 | 1 2 1 Detach 4 | 1 2 1 Swap . | . . . Drop . | . . . Fire 30 | 11 15 4 Melee . | . . . Ram . | . . . Kick . | . . . Crush . | . . . Escape Stasis . | . . . Rewire . | . . . Trap . | . . . Miscellaneous . | . . . Route ------- -11/Scrapyard -10/Materials -10/Mines History --------- Turn | Location | Event 12 | -11/Scrapyard | Discovered new exit (range 15) 86 | -11/Scrapyard | Entered Materials 202 | -10/Materials | Discovered new exit (range 9) 206 | -10/Materials | Entered Mines 207 | -10/Mines | Assembled infested the area 212 | -10/Mines | Assisted by a Guerilla fighting off Assembled 248 | -10/Mines | Core integrity fell below 50% 251 | -10/Mines | Core integrity fell below 20% 251 | -10/Mines | Destroyed by D-53 Grenadier with Mini Grenade Launcher Last Messages --------------- LOCATION=UNKNOWN GOAL=ESCAPE 00207_ ALERT: Infestation in the mines, dispatching Demolisher response squad. 00218_ G-47 Trooper suffers critical hit (Destroy). 00222_ HV Slug penetrates G-47 Trooper. 00222_ G-47 Trooper destroyed. 00223_ Acquired 28 matter. 00232_ C-45 Heavy ARC bursts open, deploying its payload. 00236_ Lgt. Assault Rifle destroyed. 00237_ HV Slug penetrates D-53 Grenadier. 00239_ D-53 Grenadier suffers critical hit (Destroy). 00239_ HV Slug penetrates Wall. 00241_ HV Slug penetrates Earth. 00243_ 0N-6ON(h) destroyed. 00245_ Lgt. Treads destroyed. 00247_ The unstable cave ceiling collapses. 00247_ Lgt. Treads destroyed. 00249_ Sml. Laser destroyed. 00251_ Seismic Detector destroyed. Map ----- +----------------------------------------------------+ | ??????????????????????????????????????????????? | | ??????????????????????????????????????????????? | | ??????????????????????????????????????????????? | | ??????????????????????????????????????????????? | | ??????????????????????????????????????????????? | | ??????????????????????????????????????????????? | | ??????????????????????????????????????????????? | | ??????????????????????????????????????????????? | | ??????????????????????????????????????????????? | | ??????????????????????????????????????????????? | | ????????????????????????#?????????????????????? | | ???????????????????????# #???????????????????? | | ??????????????????##### #??????????????????? | | ?????????????????## #??????????????????? | | ?????????????????? | ##?????????????????? | | ?????????????????? #?????????????????? | | ??????????????????? ##????????????????? | | ??????????????????? = #????????????????? | | ???????????????????#| #????????????????? | | ????????????#?????## #????????????????? | | ???????????## ##### #?????????????????? | | ???????????? #??????????????????? | | ??????????????kr g!#??????????????????? | | ????????????????# ]#??????????????????? | | ?????????????????#r #???????????????????? | | ??????????????????# = @ ###???######????????? | | ??????????????????#### ##### ##???????? | | ?????????????????????# ## #???????? | | ????????????????????# #???????? | | ???????????????????### % #???????? | | ???????????????????# #???????? | | ???????????????????## d ##??????? | | ????????????????????## d ##??#### | | ?????????????????????## # # | | ??????????????????????### #???? | | ????????????????????????## # # #???? | | ?????????????????????????### #?????? | | ???????????????????????????### ##?????? | | ?????????????????????????????### #??????? | | ???????????????????? ##? #??????? | | ???????????????????? # # ### #???? | | ????????????????????# #???? | | ????????????????????# ##### #####???? | | ?????????????????????# #????# #???????? | | ?????????????????????##########?????# #???????? | | ???????????????????????????########## #???????? | | ???????????????????? #???????? | | ???????????????????????????############???????? | | ??????????????????????????????????????????????? | | ??????????????????????????????????????????????? | +----------------------------------------------------+ Best States ------------- Heat Dissipation 25 Energy Generation 10 Energy Capacity 125 Matter Stores 300 Matter Capacity 300 Sight Range 16 Terrain Scan Density 10 Evasion (%) 50 Targeting Accuracy 5 Recoil Reduction 2 Item Schematics ----------------- None Robot Schematics ------------------ None Fabricated ------------ Nothing Repaired ---------- Nothing Studied --------- None Alien Tech Used ----------------- None Achievements -------------- None Challenges ------------ None Game ------ Seed ImprovedNeutronBlaster Manual? 0 Play Time 00:03:33 Cumulative 376.8 hours Start 2026.08.11 @ 18:37:21 End 2026.08.11 @ 18:40:14 Sessions 1 Manual Loads 0 Difficulty Rogue Special Mode None Game No. 231 Rogue 227 Adventurer 4 Explorer 0 Win Type - Total 113 Types 87/0/13/3/2/1/2/0/0/5 Lore% 92 Gallery% 75 Achievement% 73 Wizard Run 0 Options --------- Layout 0 ASCII 0 Keyboard 1 Movement Vi Keybinds 1 Fullscreen 2 Font 18/SmallcapsGlow Map View 76x50 Zoom Use 0% Tactical HUD 1 Map Filters NONE Filters NONE Steam 1 RUN: a9e5e9d9-5796-46ca-a6d2-62ed5932f70b